bitfinex/quotes_SOLUSD_20260105
["timestamp","ask_amount","ask_price","bid_price","bid_amount"]
[1767597937895,0.67195214,135.01,134.98,8.06392987]
[1767597938196,0.67195214,135.01,134.98,7.40836921]
[1767597944583,0.67195214,135.01,134.98,8.06392987]
[1767597951295,0.67195214,135.01,134.99,0.66243208]
[1767597951688,0.65391744,135.0,134.97,8.07124132]
[1767597957113,18.51391097,135.04,134.97,8.07124132]
[1767597957114,0.65391744,135.04,135.0,0.66243208]
[1767597957317,0.65391744,135.04,135.0,4.01262013]
[1767597961001,0.67119511,135.02,135.0,3.35018805]
[1767597961519,0.67119511,135.02,134.99,24.92033467]
[1767597972738,0.67119511,135.02,134.99,21.57014662]
[1767597978126,0.67119511,135.02,134.99,20.90771454]
[1767597978634,0.67119511,135.02,134.99,7.40771454]
[1767597978816,0.67119511,135.02,134.98,4.01262013]
[1767597978817,0.67119511,135.0,134.96,0.66243208]
[1767597979018,0.67119511,135.0,134.97,21.57115382]
[1767597979211,0.67119511,135.0,134.97,24.92134187]
[1767597979424,0.67119511,135.02,134.99,0.66243208]
[1767597979625,1.41133277,135.04,135.01,4.01262013]
[1767597979815,0.67119511,135.06,135.02,4.01262013]
[1767597980014,0.67119511,135.06,135.03,4.01262013]
[1767597981139,1.41133277,135.07,135.04,4.01262013]
[1767597981343,0.67119511,135.07,135.04,4.01262013]
[1767597982811,0.67119511,135.07,135.03,24.91819835]
[1767597983126,0.67119511,135.06,135.03,13.5]
[1767597986846,0.67119511,135.06,135.02,23.71089155]
[1767597987148,0.67119511,135.06,135.01,10.21144671]
[1767597987350,0.67119511,135.04,135.01,13.5]
[1767597989352,0.67119511,135.04,135.0,8.06963761]
[1767597989353,0.67119511,135.04,135.0,21.56963761]
[1767597989529,0.67119511,135.04,135.0,8.06963761]
[1767597990049,0.67119511,135.04,135.0,21.56963761]
[1767597990431,0.67119511,135.04,135.0,8.06963761]
[1767597990641,0.67119511,135.04,135.0,21.56963761]
[1767597990954,0.67119511,135.04,135.0,8.06963761]
[1767597991131,0.67119511,135.04,135.0,23.71195767]
[1767597991333,0.67119511,135.04,135.0,10.21195767]
[1767597991649,0.67119511,135.04,135.0,23.71195767]
[1767597991829,0.67119511,135.04,135.0,10.21195767]
[1767597992028,0.67119511,135.04,135.0,23.71195767]
[1767597992226,0.7076996,135.05,135.02,2.80475214]
[1767597992457,0.7076996,135.07,135.04,2.14232006]
[1767597992951,0.7076996,135.07,135.03,16.30475214]
[1767597997960,0.7076996,135.07,135.03,23.71041483]
[1767598003253,0.7076996,135.07,135.03,8.06809477]
[1767598003440,0.7076996,135.07,135.03,21.56809477]
[1767598006153,0.7076996,135.07,135.03,7.40566269]
[1767598006343,0.7076996,135.06,135.02,23.71085458]
[1767598007246,0.7076996,135.06,135.03,0.66243208]
[1767598008575,0.7076996,135.06,135.03,8.06812804]
[1767598011071,0.7076996,135.06,135.02,7.4058547]
[1767598011261,0.66773599,135.04,135.01,0.66243208]
[1767598013059,0.66773599,135.04,135.01,8.06921425]
[1767598013563,0.66773599,135.05,135.02,0.66243208]
[1767598013766,0.66773599,135.05,135.01,8.06921425]
[1767598024784,0.66773599,135.05,135.02,0.66243208]
[1767598025960,0.65390927,135.04,135.01,8.06908458]
[1767598026264,0.62390927,135.04,135.01,8.06908458]
[1767598034180,0.56390928,135.04,135.01,8.06908458]
[1767598036574,0.56390928,135.04,135.01,0.66243208]
[1767598036777,0.56390928,135.04,135.0,20.90719587]
[1767598037179,0.56390928,135.04,135.0,21.58530882]
[1767598037680,0.56390928,135.04,135.01,0.67811295]
[1767598038291,0.65390927,135.02,134.99,0.67811295]
[1767598038691,0.59390928,135.02,134.99,0.67811295]
[1767598042098,0.53390929,135.02,134.99,0.67811295]
[1767598042605,0.53390929,135.02,134.99,8.08591133]
[1767598044500,1.39404693,135.03,135.0,0.67811295]
[1767598044883,0.65390927,135.02,135.0,0.67811295]
[1767598045400,0.65390927,135.02,134.99,8.08591133]
[1767598052101,0.59390928,135.02,134.99,8.08591133]
[1767598054908,0.53390929,135.02,134.99,8.08591133]
[1767598055511,0.4739093,135.02,134.99,8.08591133]
[1767598069721,0.4739093,135.02,134.99,0.67811295]
[1767598069922,0.71160683,135.01,134.98,13.5]
[1767598070222,10.75553,135.02,134.98,13.5]
[1767598070418,3.34892822,135.02,134.98,14.19075419]
[1767598070622,3.34892822,135.01,134.98,0.69075419]
[1767598071523,4.08906588,135.01,134.98,0.69075419]
[1767598072023,4.75669013,135.01,134.98,0.69075419]
[1767598073126,0.56265353,135.0,134.98,0.69075419]
[1767598075228,0.50265351,135.0,134.98,0.69075419]
[1767598077906,4.08906588,135.01,134.98,0.69075419]
[1767598078112,4.75669013,135.01,134.98,0.69075419]
[1767598079627,0.74013766,135.01,134.98,0.69075419]
[1767598079832,1.24339117,135.01,134.98,0.69075419]
[1767598082440,1.18339115,135.01,134.98,0.69075419]
[1767598082626,0.70378649,135.03,135.01,0.72300401]
[1767598082807,0.70378649,135.04,135.01,0.72300401]
[1767598083006,0.70378649,135.04,135.0,8.13030852]
[1767598083212,0.70378649,135.04,135.01,4.07193223]
[1767598083839,0.70378649,135.04,135.01,0.72300401]
[1767598084331,0.70378649,135.06,135.04,0.72300401]
[1767598084535,0.70378649,135.06,135.03,3.34892822]
[1767598084837,0.70378649,135.06,135.02,17.57193223]
[1767598085362,0.70378649,135.06,135.03,0.72300401]
[1767598085635,0.70378649,135.06,135.02,16.84892822]
[1767598085636,0.70378649,135.05,135.02,14.22300401]
[1767598086518,0.70378649,135.05,135.02,0.72300401]
[1767598087437,0.70378649,135.05,135.01,0.72300401]
[1767598087628,0.70378649,135.04,135.01,14.22300401]
[1767598090817,0.70378649,135.04,135.01,0.72300401]
[1767598100855,8.10901743,135.04,135.01,0.72300401]
[1767598101753,0.70378649,135.03,135.01,0.72300401]
[1767598107058,0.6437865,135.03,135.01,0.72300401]
[1767598107436,0.6437865,135.03,135.0,0.72300401]
[1767598111641,0.58378651,135.03,135.01,0.67702665]
[1767598116167,0.52378652,135.03,135.01,0.67702665]
[1767598122656,0.46378653,135.03,135.01,0.67702665]
[1767598124570,0.46378653,135.03,134.99,8.08478718]
[1767598124747,0.46378653,135.03,134.98,0.67702665]
[1767598124748,0.68557269,135.0,134.98,0.67702665]
[1767598124947,2.1430188,135.01,134.98,0.67702665]
[1767598125465,2.1430188,135.01,134.97,14.17702665]
[1767598125766,2.1430188,135.0,134.97,14.17702665]
[1767598126954,2.82859149,135.0,134.97,14.17702665]
[1767598127157,2.82859149,135.0,134.97,13.5]
[1767598127353,2.82859149,135.0,134.97,14.17702665]
[1767598131169,0.24250389,134.99,134.97,0.67702665]
[1767598131471,9.55059003,135.0,134.94,0.6631971]
[1767598131472,0.24689027,134.97,134.94,0.6631971]
[1767598131771,2.1430188,134.98,134.95,0.6631971]
[1767598131772,0.20859316,134.98,134.95,0.6631971]
[1767598132168,2.86284475,134.99,134.95,0.6631971]
[1767598132674,0.71982595,134.99,134.95,0.6631971]
[1767598133959,0.71982595,134.99,134.96,0.6631971]
[1767598134672,2.86284475,134.99,134.96,0.6631971]
[1767598134870,7.40757123,135.0,134.96,0.6631971]
[1767598134871,2.86284475,135.0,134.96,0.6631971]
[1767598135764,0.71982595,135.0,134.96,0.6631971]
[1767598137280,0.71982595,135.0,134.97,0.6631971]
[1767598140680,7.40628038,135.03,134.97,7.4086727]
[1767598140867,0.72151394,135.04,135.02,2.1430188]
[1767598143877,7.40500585,135.05,135.02,2.1430188]
[1767598143878,0.72151394,135.05,135.02,2.1430188]
[1767598144081,0.72151394,135.05,135.02,2.81060856]
[1767598145685,0.72151394,135.07,135.04,2.81060856]
[1767598145887,0.72151394,135.09,135.06,2.81060856]
[1767598146065,0.72151394,135.09,135.06,2.78060857]
[1767598148480,0.72151394,135.11,135.08,0.66758976]
[1767598150789,0.72151394,135.12,135.09,0.66758976]
[1767598151083,0.72151394,135.12,135.09,0.6075898]
[1767598152989,8.12191167,135.13,135.1,0.66758976]
[1767598153186,8.12191167,135.13,135.1,0.60758981]
[1767598154587,0.35542195,135.12,135.08,2.1430188]
[1767598155196,0.35542195,135.12,135.09,0.66758976]
[1767598168703,0.35542195,135.12,135.09,8.06968669]
[1767598169110,0.35542195,135.12,135.09,8.00968674]
[1767598169605,0.35542195,135.12,135.09,0.60758981]
[1767598179618,0.35542195,135.12,135.1,0.65560317]
[1767598180207,4.00871675,135.14,135.1,0.65560317]
[1767598180407,0.66396044,135.14,135.1,0.65560317]
[1767598181922,0.66396044,135.14,135.11,0.65560317]
[1767598182612,25.10794359,135.15,135.11,0.59560322]
[1767598182794,11.60794359,135.15,135.11,0.59560322]
[1767598182994,0.53119982,135.14,135.11,0.59560322]
[1767598183222,11.60794359,135.15,135.11,0.59560322]
[1767598183622,0.86396044,135.15,135.11,7.40128381]
[1767598184524,0.86396044,135.15,135.12,0.65560317]
[1767598187019,0.53119982,135.14,135.11,7.40128381]
[1767598187522,0.53119982,135.14,135.11,3.34475631]
[1767598188402,0.53119982,135.14,135.11,10.74605567]
[1767598188598,0.2,135.15,135.12,0.65560317]
[1767598188798,0.2,135.15,135.14,0.65560317]
[1767598189021,0.66263283,135.15,135.12,3.34475631]
[1767598189705,0.66263283,135.15,135.12,4.00035948]
[1767598189905,0.86396044,135.16,135.13,0.65560317]
[1767598190603,0.86396044,135.16,135.13,0.59560318]
[1767598191125,0.2,135.16,135.13,0.59560318]
[1767598191698,4.22021075,135.16,135.13,0.59560318]
[1767598192400,3.54475631,135.16,135.13,0.59560318]
[1767598193424,0.2,135.16,135.13,0.59560318]
[1767598194201,0.67545444,135.15,135.12,0.69769762]
[1767598195130,4.02021075,135.15,135.12,0.69769762]
[1767598196431,0.57922075,135.14,135.11,8.0989387]
[1767598196727,3.923005,135.15,135.12,0.69769762]
[1767598197122,11.6199038,135.16,135.12,0.69769762]
[1767598197509,0.57824869,135.15,135.12,0.69769762]
[1767598197722,0.57824869,135.15,135.11,7.40124108]
[1767598197942,0.57824869,135.15,135.11,11.44369501]
[1767598198133,0.57824869,135.15,135.12,0.69769762]
[1767598199939,11.6199038,135.16,135.12,0.69769762]
[1767598200937,8.27514749,135.16,135.12,0.69769762]
[1767598201330,0.87643632,135.16,135.13,0.66190219]
[1767598201643,0.2,135.17,135.15,0.66190219]
[1767598202238,0.2,135.17,135.15,0.60190219]
[1767598202734,0.86622733,135.17,135.13,3.34475631]
[1767598202938,0.86622733,135.17,135.12,25.90277348]
[1767598203248,0.66622733,135.16,135.12,20.90070125]
[1767598203415,0.86622733,135.17,135.12,24.24545756]
[1767598204325,0.86622733,135.17,135.14,0.66190219]
[1767598204926,4.21098364,135.17,135.14,0.66190219]
[1767598206738,0.86622733,135.17,135.14,0.66190219]
[1767598206910,4.21098364,135.17,135.14,0.66190219]
[1767598207826,0.86622733,135.17,135.14,0.66190219]
[1767598208226,4.21098364,135.17,135.14,0.66190219]
[1767598208427,0.66622733,135.16,135.13,7.40012143]
[1767598208623,0.66622733,135.16,135.13,8.06202362]
[1767598209824,0.66622733,135.16,135.13,11.40677993]
[1767598210023,0.86622733,135.17,135.14,0.66190219]
[1767598210523,0.86622733,135.17,135.13,11.40677993]
[1767598210737,0.66622733,135.16,135.13,11.40677993]
[1767598210923,0.2,135.17,135.14,0.66190219]
[1767598211125,0.66622733,135.16,135.13,11.40677993]
[1767598211324,0.2,135.17,135.15,0.66190219]
[1767598211850,0.2,135.17,135.15,0.60190228]
[1767598212735,0.2,135.17,135.15,7.39906134]
[1767598213128,0.2,135.18,135.15,10.74381765]
[1767598213722,0.2,135.18,135.16,0.66190219]
[1767598214144,0.2,135.19,135.17,0.66190219]
[1767598218642,0.2,135.2,135.18,0.66190219]
[1767598218851,0.2,135.2,135.18,0.60190219]
[1767598220544,0.2,135.2,135.17,10.74255618]
[1767598220545,0.86622733,135.2,135.17,10.74255618]
[1767598221646,0.2,135.2,135.18,0.66190219]
[1767598223936,0.2,135.2,135.17,10.74255618]
[1767598224142,0.66622733,135.19,135.17,10.74262618]
[1767598225256,0.2,135.2,135.17,11.40452837]
[1767598225434,0.2,135.2,135.18,0.66190219]
[1767598226355,0.2,135.2,135.18,0.60190219]
[1767598233856,0.2,135.2,135.18,0.54190219]
[1767598234357,0.91511022,135.2,135.16,9.53614329]
[1767598234536,0.71511022,135.19,135.15,85.4164205]
[1767598234736,0.71511022,135.19,135.15,23.0164205]
[1767598235157,0.91511022,135.2,135.15,23.0164205]
[1767598235362,0.91511022,135.2,135.16,7.39827321]
[1767598235542,0.91511022,135.2,135.16,9.53593585]
[1767598235956,0.91511022,135.2,135.17,0.63947418]
[1767598236243,0.2,135.2,135.18,0.63947418]
[1767598236761,1e-08,135.2,135.19,0.63947418]
[1767598236943,1e-08,135.2,135.18,2.77713682]
[1767598238436,1e-08,135.2,135.18,10.17429046]
[1767598238642,1e-08,135.2,135.19,0.63947418]
[1767598239039,0.71511022,135.22,135.19,3.5168365]
[1767598239335,0.71511022,135.22,135.2,2.13766264]
[1767598240261,0.71511022,135.22,135.2,9.53391953]
[1767598240452,0.71511022,135.24,135.2,8.03573107]
[1767598243860,2.85277286,135.24,135.2,8.03573107]
[1767598247551,0.71511022,135.23,135.2,8.03573107]
[1767598249163,0.71511022,135.22,135.19,8.03634547]
[1767598253452,0.71511022,135.22,135.19,0.63947418]
[1767598253651,0.69109392,135.21,135.18,7.39754401]
[1767598257466,0.69109392,135.21,135.18,8.03701819]
[1767598258150,2.82875656,135.23,135.19,0.63947418]
[1767598259073,2.82875656,135.23,135.19,8.03627818]
[1767598260068,0.69109392,135.22,135.19,8.03627818]
[1767598261473,0.69109392,135.22,135.19,7.396804]
[1767598262173,0.72205361,135.25,135.2,2.13766264]
[1767598262375,0.72205361,135.25,135.21,2.13766264]
[1767598262560,0.72205361,135.25,135.21,2.8772529]
[1767598262758,0.92205361,135.26,135.22,0.63947418]
[1767598262961,0.92205361,135.26,135.23,0.63947418]
[1767598263370,0.72205361,135.25,135.22,2.13766264]
[1767598263766,0.72205361,135.25,135.22,2.87719821]
[1767598264171,0.72205361,135.25,135.23,7.39480884]
[1767598268476,0.2,135.26,135.23,8.03428302]
[1767598269784,0.72205361,135.25,135.23,7.39480884]
[1767598271086,0.2,135.26,135.23,8.03428302]
[1767598273187,0.2,135.26,135.24,0.63947418]
[1767598274281,0.92205361,135.26,135.23,7.39480884]
[1767598274467,0.72205361,135.25,135.23,7.39480884]
[1767598275669,0.2,135.26,135.23,8.03428302]
[1767598286472,0.92205361,135.26,135.23,8.03428302]
[1767598286680,0.72205361,135.25,135.23,7.39480884]
[1767598286867,0.72205361,135.23,135.21,62.4]
[1767598287072,0.72205361,135.23,135.2,8.03540108]
[1767598287288,0.72205361,135.23,135.2,7.3959269]
[1767598288019,0.72205361,135.22,135.2,7.3959269]
[1767598288892,0.72205361,135.22,135.19,20.87694451]
[1767598289093,0.72205361,135.22,135.19,7.39694451]
[1767598289695,2.85971625,135.22,135.19,7.39694451]
[1767598290092,0.72205361,135.21,135.18,25.8909777]
[1767598290870,0.62205361,135.2,135.18,5.6590718]
[1767598291070,3.96183113,135.2,135.17,20.87801792]
[1767598291276,3.96183113,135.2,135.17,7.39801792]
[1767598291474,0.62205361,135.2,135.17,7.39801792]
[1767598291688,3.33977752,135.21,135.18,0.67926846]
[1767598291897,3.43877752,135.21,135.18,0.67926846]
[1767598292075,0.099,135.21,135.18,0.67926846]
[1767598292996,3.33977752,135.21,135.18,0.67926846]
[1767598293379,3.43877752,135.21,135.18,0.67926846]
[1767598293779,3.85760059,135.2,135.17,8.07728861]
[1767598293998,0.10318823,135.19,135.17,6.87915477]
[1767598294181,0.07318822,135.19,135.17,6.87915477]
[1767598294379,0.07318822,135.19,135.16,7.39863865]
[1767598295600,21.82610099,135.24,135.15,7.39903138]
[1767598295601,3.33977752,135.18,135.15,7.39903138]
[1767598296483,3.33977752,135.19,135.15,7.39903138]
[1767598296702,3.33977752,135.24,135.15,7.39903138]
[1767598296895,3.33977752,135.18,135.15,7.39903138]
[1767598297098,3.33977752,135.18,135.16,0.67926846]
[1767598297397,7.39619502,135.21,135.16,0.67926846]
[1767598297703,3.33977752,135.19,135.16,0.67926846]
[1767598312418,25.883745,135.22,135.16,0.67926846]
[1767598312719,3.33977752,135.19,135.16,0.67926846]
[1767598312923,25.883745,135.22,135.16,0.67926846]
[1767598313102,3.33977752,135.19,135.16,0.67926846]
[1767598321426,3.33977752,135.21,135.17,0.71144158]
[1767598322410,7.39555362,135.22,135.17,8.10946456]
[1767598322619,3.33977752,135.21,135.18,0.71144158]
[1767598322825,7.39555362,135.22,135.18,0.71144158]
[1767598323217,3.33977752,135.21,135.18,0.71144158]
[1767598328428,7.39555362,135.22,135.18,0.71144158]
[1767598328724,3.33977752,135.21,135.18,0.71144158]
[1767598329032,3.33977752,135.2,135.18,0.71144158]
[1767598329630,3.33977752,135.2,135.16,8.10985698]
[1767598329929,3.33977752,135.2,135.16,7.3984154]
[1767598330231,3.33977752,135.19,135.16,0.71144158]
[1767598334820,3.30977753,135.19,135.17,0.71144158]
[1767598335038,3.33977752,135.19,135.17,0.71144158]
[1767598336221,25.88435159,135.22,135.17,0.71144158]
[1767598336423,3.33977752,135.19,135.17,0.71144158]
[1767598338544,25.88435159,135.22,135.17,0.71144158]
[1767598338752,3.33977752,135.2,135.17,0.71144158]
[1767598340223,7.3963028,135.21,135.17,0.71144158]
[1767598340430,3.33977752,135.2,135.17,0.71144158]
[1767598341949,25.88435159,135.22,135.17,0.71144158]
[1767598342150,3.33977752,135.2,135.17,0.71144158]
[1767598342454,10.73513323,135.22,135.18,0.71144158]
[1767598343030,3.33977752,135.21,135.18,0.71144158]
[1767598343265,7.39535571,135.22,135.18,0.71144158]
[1767598343754,3.33977752,135.24,135.19,0.71144158]
[1767598344440,7.39384685,135.25,135.19,0.71144158]
[1767598344638,3.33977752,135.24,135.19,0.71144158]
[1767598346951,0.2,135.26,135.21,0.71144158]
[1767598347249,3.33977752,135.25,135.21,0.71144158]
[1767598347855,10.93298625,135.26,135.21,0.71144158]
[1767598348254,7.59320873,135.26,135.22,0.71144158]
[1767598348550,10.93298625,135.26,135.22,0.71144158]
[1767598349262,7.59320873,135.26,135.22,0.71144158]
[1767598349443,10.93298625,135.26,135.22,0.71144158]
[1767598349958,0.2,135.26,135.23,4.0512191]
[1767598351253,0.2,135.26,135.23,0.71144158]
[1767598352658,0.2,135.26,135.24,0.69905847]
[1767598352858,0.2,135.26,135.23,8.09381624]
[1767598356958,0.2,135.26,135.24,0.69905847]
[1767598357256,0.2,135.26,135.24,0.63905847]
[1767598357652,2.36905129,135.26,135.2,2.13586307]
[1767598357840,2.13586307,135.25,135.2,2.13586307]
[1767598358861,2.13586307,135.25,135.21,7.39580352]
[1767598359158,2.13586307,135.25,135.22,0.69905847]
[1767598359371,0.03318822,135.24,135.21,7.39580352]
[1767598359534,0.03318822,135.23,135.2,8.09530143]
[1767598359955,0.03318822,135.23,135.2,0.69905847]
[1767598360144,0.03318822,135.23,135.18,23.71207059]
[1767598360339,0.03318822,135.23,135.19,0.69905847]
[1767598360863,2.16905129,135.23,135.19,0.69905847]
[1767598361341,2.13586307,135.23,135.19,0.69905847]
[1767598361549,2.13586307,135.23,135.2,0.69905847]
[1767598361753,2.16905129,135.24,135.2,0.69905847]
[1767598361948,2.13586307,135.23,135.2,0.69905847]
[1767598363867,2.16905129,135.24,135.2,0.69905847]
[1767598368170,0.03318822,135.25,135.21,0.69905847]
[1767598368342,2.13586307,135.24,135.21,0.69905847]
[1767598370603,0.03318822,135.25,135.21,0.69905847]
[1767598370865,2.13586307,135.23,135.2,0.69905847]
[1767598372246,2.13586307,135.22,135.2,0.69905847]
[1767598372447,2.13586307,135.21,135.18,8.06835442]
[1767598372650,2.13586307,135.21,135.18,0.67100427]
[1767598372851,0.03318822,135.22,135.18,0.67100427]
[1767598373051,2.13586307,135.21,135.18,0.67100427]
[1767598376069,2.13586307,135.21,135.18,8.068538]
[1767598376551,2.13586307,135.21,135.19,0.67100427]
[1767598378876,2.10586308,135.21,135.19,0.67100427]
[1767598394491,2.13586307,135.22,135.19,0.67100427]
[1767598394992,7.42739644,135.25,135.2,0.69729563]
[1767598395187,2.13586307,135.24,135.2,0.69729563]
[1767598398570,2.13586307,135.24,135.21,0.69729563]
[1767598402190,2.13586307,135.23,135.21,0.69729563]
[1767598403494,0.03318822,135.22,135.2,7.39635902]
[1767598404479,0.03318822,135.21,135.19,7.396857]
[1767598405177,2.16905129,135.22,135.19,7.396857]
[1767598405380,2.16905129,135.22,135.19,0.69729563]
[1767598405888,2.16905129,135.22,135.19,8.09426966]
[1767598407500,2.13586307,135.22,135.2,0.69729563]
[1767598407997,7.39448409,135.24,135.17,0.69729563]
[1767598407998,2.16905129,135.21,135.17,0.69729563]
[1767598408293,2.16905129,135.21,135.14,0.73997336]
[1767598408294,2.13586307,135.18,135.15,7.39870154]
[1767598408506,2.13586307,135.17,135.15,7.39870154]
[1767598409597,2.80450787,135.18,135.15,7.39918608]
[1767598410891,2.80450787,135.18,135.15,8.10571318]
[1767598411397,2.13586307,135.18,135.16,0.7065271]
[1767598413091,2.13586307,135.17,135.16,0.7065271]
[1767598413797,2.13586307,135.17,135.15,0.7065271]
[1767598414492,0.67884751,135.18,135.15,0.7065271]
[1767598414682,3.34240058,135.17,135.15,0.7065271]
[1767598416080,3.34240058,135.17,135.14,0.7065271]
[1767598416692,3.49252055,135.17,135.14,0.7065271]
[1767598417003,3.34240058,135.17,135.14,0.7065271]
[1767598418781,3.31240059,135.17,135.14,0.7065271]
[1767598420285,3.2824006,135.17,135.15,0.7065271]
[1767598421684,0.68424214,135.18,135.15,0.7065271]
[1767598421685,4.02664272,135.18,135.15,0.7065271]
[1767598422991,0.68424214,135.18,135.15,0.7065271]
[1767598423303,4.02664272,135.18,135.15,0.7065271]
[1767598424902,0.68424214,135.18,135.15,0.7065271]
[1767598425619,8.0816499,135.19,135.15,0.7065271]
[1767598425811,11.42405048,135.19,135.15,0.7065271]
[1767598427109,0.14477929,135.18,135.15,0.7065271]
[1767598430514,11.42405048,135.19,135.15,0.7065271]
[1767598431617,3.48717987,135.18,135.15,0.7065271]
[1767598433405,0.14477929,135.18,135.15,0.7065271]
[1767598433602,3.48717987,135.18,135.15,0.7065271]
[1767598433807,0.14477929,135.18,135.15,7.39918004]
[1767598434596,0.1147793,135.18,135.15,8.07089357]
[1767598435008,3.34240058,135.19,135.15,8.07089357]
[1767598436315,3.34240058,135.19,135.16,0.67171353]
[1767598436619,4.04288444,135.19,135.16,0.67171353]
[1767598437122,3.34240058,135.18,135.15,0.67171353]
[1767598437419,0.69446902,135.17,135.13,0.67171353]
[1767598438134,4.04288444,135.18,135.13,0.67171353]
[1767598438897,0.099,135.17,135.14,7.39964393]
[1767598439396,3.44140058,135.17,135.14,7.39964393]
[1767598440224,0.69446902,135.16,135.13,8.07190249]
[1767598440918,3.34240058,135.17,135.14,0.69431387]
[1767598441098,3.44787699,135.17,135.14,0.69431387]
[1767598441299,0.10547641,135.17,135.14,0.69431387]
[1767598441504,3.44787699,135.17,135.14,0.69431387]
[1767598441704,4.03634261,135.18,135.14,0.69431387]
[1767598443018,0.69394203,135.18,135.14,0.69431387]
[1767598443204,4.03634261,135.18,135.14,0.69431387]
[1767598444410,3.34240058,135.17,135.14,0.69431387]
[1767598445014,3.34240058,135.17,135.13,7.40018896]
[1767598445015,11.43451805,135.17,135.13,0.69431387]
[1767598445219,3.34240058,135.18,135.14,0.69431387]
[1767598445412,4.03045795,135.18,135.14,0.69431387]
[1767598446826,4.03045795,135.18,135.14,8.09401936]
[1767598447126,4.03045795,135.18,135.15,0.69431387]
[1767598450324,3.34240058,135.18,135.16,0.69431387]
[1767598450628,7.39664703,135.2,135.16,0.69431387]
[1767598450629,11.43298964,135.2,135.16,0.69431387]
[1767598450820,0.69394203,135.2,135.16,0.69431387]
[1767598451207,4.03634261,135.2,135.16,0.69431387]
[1767598451727,4.03634261,135.2,135.17,0.69431387]
[1767598457829,3.34240058,135.19,135.17,0.69431387]
[1767598458410,4.03634261,135.2,135.17,0.69431387]
[1767598461239,0.69394203,135.2,135.17,0.69431387]
[1767598461418,4.03634261,135.2,135.17,0.69431387]
[1767598464932,3.34240058,135.19,135.17,0.69431387]
[1767598466936,0.69394203,135.2,135.17,0.69431387]
[1767598467143,3.34240058,135.19,135.17,0.69431387]
[1767598471547,4.03045795,135.18,135.14,75.88]
[1767598471743,4.03045795,135.18,135.15,0.66804598]
[1767598471955,3.34240058,135.18,135.15,0.66804598]
[1767598472136,3.34240058,135.17,135.15,0.66804598]
[1767598473956,8.08520309,135.19,135.15,0.66804598]
[1767598474157,3.34240058,135.18,135.15,0.66804598]
[1767598476560,2.13891228,135.18,135.15,0.66804598]
[1767598480069,2.13891228,135.18,135.16,0.66804598]
[1767598483270,0.68240601,135.18,135.16,7.39855444]
[1767598484275,0.68817592,135.19,135.16,8.06660042]
[1767598485155,2.8270882,135.2,135.17,0.66804598]
[1767598486176,2.8270882,135.22,135.18,0.66804598]
[1767598487967,2.8270882,135.22,135.19,0.66804598]
[1767598494565,2.25009714,135.21,135.18,0.68811094]
[1767598495365,2.13891228,135.21,135.18,0.68811094]
[1767598495770,2.28453817,135.21,135.18,0.68811094]
[1767598495984,2.78722167,135.2,135.17,8.08620223]
[1767598497381,2.78722167,135.2,135.17,0.68811094]
[1767598498079,0.15065272,135.19,135.16,8.08663273]
[1767598498279,0.15065272,135.19,135.16,7.39852179]
[1767598500894,0.15557952,135.17,135.15,7.39918608]
[1767598501187,0.12557953,135.17,135.15,7.39918608]
[1767598502789,0.09557954,135.17,135.15,7.39918608]
[1767598502988,2.13891228,135.18,135.15,7.39918608]
[1767598503171,2.13891228,135.18,135.15,0.68587857]
[1767598503492,2.13891228,135.18,135.14,26.58445188]
[1767598504693,0.64048388,135.17,135.14,26.58445188]
[1767598505662,2.13891228,135.19,135.14,28.72336416]
[1767598506090,7.3961001,135.21,135.16,0.68587857]
[1767598506091,2.13891228,135.21,135.16,0.68587857]
[1767598506774,2.13891228,135.21,135.18,0.68587857]
[1767598510993,2.13891228,135.21,135.19,0.68587857]
[1767598511199,2.13891228,135.23,135.19,0.68587857]
[1767598512179,2.13891228,135.23,135.2,0.68587857]
[1767598514095,7.39389065,135.25,135.21,0.68587857]
[1767598514277,2.13891228,135.23,135.21,0.68587857]
[1767598514673,7.39389065,135.25,135.21,0.68587857]
[1767598514908,2.13891228,135.24,135.2,8.08228169]
[1767598515088,2.13891228,135.25,135.21,0.68587857]
[1767598515403,2.13891228,135.25,135.21,8.08141445]
[1767598515904,2.13891228,135.25,135.22,0.68587857]
[1767598516286,2.13891228,135.24,135.22,0.68587857]
[1767598517218,2.13891228,135.24,135.22,0.62587857]
[1767598519207,21.13334953,135.26,135.22,0.62587857]
[1767598519208,2.13891228,135.25,135.22,0.62587857]
[1767598522903,15.81891228,135.26,135.23,0.68587857]
[1767598523100,0.2,135.26,135.23,0.68587857]
[1767598523300,2.33891228,135.28,135.26,0.68587857]
[1767598523502,2.33891228,135.28,135.23,2.13891228]
[1767598523503,0.32,135.27,135.23,2.13891228]
[1767598524323,0.32,135.27,135.24,7.39426205]
[1767598525393,2.33891228,135.28,135.24,0.68587857]
[1767598526715,0.2,135.28,135.25,0.68587857]
[1767598526896,2.33891228,135.28,135.25,0.68587857]
[1767598530714,2.13891228,135.27,135.25,0.68587857]
[1767598533628,2.43791228,135.28,135.25,0.68587857]
[1767598534416,2.33891228,135.28,135.25,0.68587857]
[1767598536619,7.69118283,135.28,135.25,0.68587857]